bitfinex/quotes_SOLUSD_20250904
["timestamp","ask_amount","ask_price","bid_price","bid_amount"]
[1757017565629,0.06,203.94,203.92,0.65]
[1757017565834,4.61527347,203.94,203.92,0.65]
[1757017566217,4.55527347,203.93,203.91,38.78]
[1757017566618,26.06,203.94,203.91,38.78]
[1757017566850,4.55527347,203.93,203.91,39.43]
[1757017567247,4.55527347,203.93,203.92,0.65]
[1757017567623,0.06,203.94,203.92,0.65]
[1757017567919,0.06,203.94,203.93,0.65]
[1757017568119,26.06,203.94,203.93,0.65]
[1757017569649,4.61527347,203.94,203.91,39.43]
[1757017569835,4.61527347,203.94,203.92,0.65]
[1757017570179,0.06,203.94,203.92,0.65]
[1757017570321,4.61527347,203.94,203.93,0.65]
[1757017570837,4.61527347,203.94,203.91,39.43]
[1757017571036,4.61527347,203.94,203.92,0.65]
[1757017571241,4.55527347,203.93,203.9,1.18]
[1757017571424,4.55527347,203.92,203.91,38.72]
[1757017571624,4.55527347,203.93,203.91,39.37]
[1757017573030,4.55527347,203.93,203.91,38.72]
[1757017573348,4.61527347,203.94,203.91,39.37]
[1757017573732,0.06,203.94,203.92,0.65]
[1757017574341,4.61527347,203.94,203.92,0.65]
[1757017575054,0.06,203.94,203.93,14.24559401]
[1757017575355,0.06,203.94,203.93,18.94302905]
[1757017575550,0.06,203.94,203.93,14.24559401]
[1757017576151,0.06,203.94,203.93,52.55559401]
[1757017576350,0.06,203.94,203.93,39.61]
[1757017576655,0.06,203.94,203.93,44.16527347]
[1757017577546,0.06,203.94,203.93,5.20527347]
[1757017577736,0.06,203.94,203.93,38.94]
[1757017578143,0.06,203.94,203.93,39.66]
[1757017578750,0.06,203.94,203.93,44.21527347]
[1757017579765,31.30527347,203.94,203.9,0.53]
[1757017579973,26.0,203.92,203.91,39.04]
[1757017580568,0.06,203.94,203.91,39.76]
[1757017580768,26.06,203.94,203.91,39.76]
[1757017581066,26.06,203.94,203.92,0.72]
[1757017582062,26.06,203.94,203.91,39.04]
[1757017582245,26.06,203.94,203.91,39.76]
[1757017582657,0.06,203.94,203.91,39.04]
[1757017582847,0.06,203.94,203.91,39.76]
[1757017583267,0.06,203.94,203.92,14.31559401]
[1757017583445,0.75,203.94,203.9,14.12559401]
[1757017583645,0.75,203.94,203.91,39.04]
[1757017584055,0.06,203.94,203.91,44.31527347]
[1757017584257,0.06,203.94,203.92,0.72]
[1757017585057,0.06,203.94,203.91,39.04]
[1757017585259,0.06,203.94,203.92,0.72]
[1757017585460,0.06,203.94,203.91,39.04]
[1757017585645,0.06,203.94,203.91,39.76]
[1757017586452,0.06,203.94,203.9,18.68086748]
[1757017586656,0.75,203.94,203.92,0.03]
[1757017587445,0.69,203.93,203.92,0.03]
[1757017587669,0.69,203.93,203.92,39.09]
[1757017587867,0.06,203.94,203.92,39.09]
[1757017588046,0.75,203.94,203.92,39.09]
[1757017589067,5.6534972,203.94,203.92,39.09]
[1757017589874,10.20877067,203.94,203.92,39.09]
[1757017590076,5.24527347,203.93,203.92,0.03]
[1757017590458,10.14891687,203.93,203.92,0.03]
[1757017590658,12.11582366,203.93,203.92,0.03]
[1757017593455,10.47628554,203.93,203.92,0.03]
[1757017595876,1.96690679,203.93,203.92,0.03]
[1757017596054,26.06,203.94,203.92,0.75]
[1757017596254,2.91573535,203.93,203.92,0.75]
[1757017596459,0.06,203.94,203.93,0.72]
[1757017596863,26.06,203.94,203.93,39.72]
[1757017597760,0.06,203.94,203.93,39.72]
[1757017598274,2.97573535,203.94,203.92,0.03]
[1757017598466,2.91573535,203.93,203.92,39.01]
[1757017598781,0.06,203.94,203.92,39.01]
[1757017601383,0.06,203.94,203.93,0.72]
[1757017601570,2.97573535,203.94,203.93,0.72]
[1757017602165,0.06,203.94,203.93,0.72]
[1757017602869,26.06,203.94,203.92,39.01]
[1757017603076,26.06,203.94,203.92,39.73]
[1757017604672,2.91573535,203.93,203.92,0.03]
[1757017604976,3.60573535,203.93,203.92,0.03]
[1757017605567,8.50937875,203.93,203.92,0.03]
[1757017606985,7.81937875,203.93,203.92,0.03]
[1757017608793,2.91573535,203.93,203.92,0.03]
[1757017610381,4.96342604,203.94,203.92,0.03]
[1757017610694,2.91573535,203.93,203.92,0.03]
[1757017611591,28.91573535,203.93,203.92,0.03]
[1757017611793,29.58573535,203.93,203.92,0.03]
[1757017611965,8.48937875,203.93,203.92,0.03]
[1757017613667,23.23972907,203.93,203.92,0.03]
[1757017614492,19.65399372,203.93,203.92,0.03]
[1757017614698,22.56972907,203.93,203.92,0.03]
[1757017614988,23.23972907,203.93,203.92,0.03]
[1757017616582,8.48937875,203.93,203.92,0.03]
[1757017616777,7.81937875,203.93,203.92,0.03]
[1757017617793,8.48937875,203.93,203.92,0.03]
[1757017618171,10.45599544,203.93,203.92,0.03]
[1757017618573,1.96661669,203.93,203.92,0.03]
[1757017618772,2.91573535,203.93,203.92,0.71]
[1757017619282,7.87915115,203.94,203.92,0.71]
[1757017619674,7.87915115,203.94,203.93,0.68]
[1757017619891,28.97573535,203.94,203.93,0.68]
[1757017620090,2.97573535,203.94,203.93,0.68]
[1757017620292,28.97573535,203.94,203.93,0.68]
[1757017620871,0.06,203.93,203.92,0.03]
[1757017621077,2.97573535,203.93,203.92,0.71]
[1757017621504,0.06,203.93,203.92,0.71]
[1757017625508,0.06,203.93,203.92,19.20947788]
[1757017626816,0.06,203.93,203.92,52.98559401]
[1757017627417,0.06,203.93,203.92,57.88947788]
[1757017627633,0.06,203.93,203.92,60.80521323]
[1757017628623,0.06,203.93,203.92,52.98559401]
[1757017628819,0.06,203.93,203.92,52.96559401]
[1757017629198,0.06,203.93,203.92,14.30559401]
[1757017629399,0.06,203.93,203.92,52.96559401]
[1757017629922,0.06,203.93,203.92,14.30559401]
[1757017630094,0.06,203.93,203.92,52.94559401]
[1757017631593,0.06,203.93,203.92,57.84947788]
[1757017632515,0.06,203.93,203.92,60.76521323]
[1757017632902,0.06,203.93,203.92,14.30559401]
[1757017633105,0.06,203.93,203.92,52.90559401]
[1757017634112,0.06,203.93,203.92,57.80947788]
[1757017636320,0.06,203.93,203.92,57.78947788]
[1757017638424,0.06,203.93,203.92,60.70521323]
[1757017639613,0.06,203.93,203.92,57.72947788]
[1757017639821,0.06,203.93,203.92,52.14559401]
[1757017640200,0.06,203.93,203.92,52.81559401]
[1757017640717,0.06,203.93,203.92,22.11521323]
[1757017640901,0.06,203.93,203.92,60.63521323]
[1757017641297,0.06,203.93,203.92,60.7773748]
[1757017641825,0.06,203.93,203.92,62.74312166]
[1757017648029,0.06,203.93,203.92,62.72312166]
[1757017651215,0.06,203.93,203.92,21.30738631]
[1757017651420,0.06,203.93,203.92,62.72312166]
[1757017652837,0.06,203.93,203.92,59.80738631]
[1757017653139,0.06,203.93,203.92,62.72312166]
[1757017653632,0.06,203.93,203.92,62.05312166]
[1757017653937,0.06,203.93,203.92,62.72312166]
[1757017654117,0.06,203.93,203.92,24.22312166]
[1757017654316,0.06,203.93,203.92,62.72312166]
[1757017654846,0.06,203.93,203.92,20.63738631]
[1757017655025,0.06,203.93,203.92,62.05312166]
[1757017655433,0.06,203.93,203.92,63.68875403]
[1757017656435,0.06,203.93,203.92,64.84914241]
[1757017656627,0.06,203.93,203.92,64.35875403]
[1757017659931,0.06,203.93,203.92,21.30738631]
[1757017660124,0.06,203.93,203.92,15.73350244]
[1757017660325,0.06,203.93,203.92,54.23350244]
[1757017660532,0.06,203.93,203.92,58.78487016]
[1757017660741,0.06,203.93,203.92,54.23350244]
[1757017660939,0.06,203.93,203.92,58.78487016]
[1757017661438,0.06,203.93,203.92,63.68875403]
[1757017661638,0.06,203.93,203.92,58.99522474]
[1757017661841,0.75,203.93,203.92,61.5808456]
[1757017662342,0.75,203.93,203.92,18.17696173]
[1757017662537,0.75,203.93,203.92,56.67696173]
[1757017663022,0.06,203.93,203.92,61.5808456]
[1757017663619,0.75,203.93,203.92,61.5808456]
[1757017663823,0.75,203.93,203.92,13.62559401]
[1757017664018,0.75,203.93,203.92,52.12559401]
[1757017665542,0.75,203.93,203.92,0.03]
[1757017665741,0.75,203.93,203.92,38.53]
[1757017667045,0.06,203.93,203.92,56.67696173]
[1757017667430,0.06,203.93,203.92,52.12559401]
[1757017667631,0.06,203.93,203.92,56.67696173]
[1757017668245,0.06,203.93,203.92,61.5808456]
[1757017668931,0.06,203.93,203.92,57.02947788]
[1757017669444,0.06,203.93,203.92,61.5808456]
[1757017672040,0.06,203.93,203.92,57.02947788]
[1757017672255,0.06,203.93,203.92,61.5808456]
[1757017672751,0.72,203.93,203.92,56.67696173]
[1757017673157,0.72,203.93,203.92,18.17696173]
[1757017673455,0.72,203.93,203.92,56.67696173]
[1757017673649,0.72,203.93,203.92,52.12559401]
[1757017674144,0.06,203.93,203.92,52.12559401]
[1757017674841,0.06,203.93,203.92,61.5808456]
[1757017676651,0.06,203.93,203.92,62.2508456]
[1757017676856,0.06,203.93,203.92,62.39300717]
[1757017677158,0.06,203.93,203.92,77.13610862]
[1757017681049,0.06,203.93,203.92,72.5847409]
[1757017681258,0.06,203.93,203.92,77.13610862]
[1757017684443,0.06,203.93,203.92,38.63610862]
[1757017684661,0.06,203.93,203.92,77.13610862]
[1757017685958,0.06,203.98,203.96,13.73775558]
[1757017686271,0.06,203.98,203.97,56.7891233]
[1757017686457,0.06,203.98,203.97,62.36180506]
[1757017686662,0.06,203.98,203.97,77.10128476]
[1757017686862,0.06,203.98,203.97,72.54991704]
[1757017687060,0.06,203.98,203.97,77.10128476]
[1757017687660,0.06,203.98,203.97,71.85991704]
[1757017687866,0.06,203.98,203.97,76.41128476]
[1757017689170,0.06,203.98,203.97,71.85991704]
[1757017689359,0.72,203.98,203.97,28.33507371]
[1757017689660,0.72,203.98,203.97,76.26912319]
[1757017689847,0.72,203.98,203.97,61.52964349]
[1757017694474,0.06,203.98,203.97,61.52964349]
[1757017694778,0.72,203.98,203.97,61.52964349]
[1757017695759,0.72,203.98,203.97,18.49827577]
[1757017695960,0.72,203.98,203.97,38.48]
[1757017696163,0.72,203.98,203.97,43.03136772]
[1757017696477,0.72,203.98,203.97,38.48]
[1757017697176,0.72,203.98,203.97,43.03136772]
[1757017697677,0.72,203.98,203.97,47.93404948]
[1757017697857,0.72,203.98,203.97,43.38268176]
[1757017698378,0.72,203.98,203.97,38.48]
[1757017698573,0.72,203.98,203.96,9.45422483]
[1757017698763,0.06,203.98,203.97,38.48]
[1757017699278,0.74,203.98,203.97,38.48]
[1757017700073,0.74,203.98,203.94,9.45476938]
[1757017700288,0.68,203.97,203.95,38.48]
[1757017700579,0.68,203.97,203.95,43.03136772]
[1757017701684,0.68,203.97,203.95,47.93439192]
[1757017703564,0.06,203.98,203.96,4.55136772]
[1757017703763,0.06,203.98,203.97,47.93404948]
[1757017706264,0.06,203.98,203.97,61.52964349]
[1757017706465,0.06,203.98,203.97,62.21964349]
[1757017707499,0.06,203.98,203.97,61.52964349]
[1757017707688,0.06,203.98,203.97,23.04964349]
[1757017707995,0.06,203.98,203.97,61.52964349]
[1757017708171,0.06,203.98,203.97,62.36180506]
[1757017709061,0.06,203.98,203.97,23.88180506]
[1757017709579,0.06,203.98,203.97,62.36180506]
[1757017709969,0.06,203.98,203.97,23.88180506]
[1757017710170,0.06,203.98,203.97,62.36180506]
[1757017710581,0.06,203.98,203.97,64.32687592]
[1757017711582,0.06,203.98,203.97,21.2955082]
[1757017711785,0.06,203.98,203.97,64.32687592]
[1757017712474,0.06,203.98,203.97,25.84687592]
[1757017714682,0.06,203.98,203.97,63.61687592]
[1757017715082,0.06,203.98,203.97,64.30687592]
[1757017715300,0.06,203.98,203.97,20.6055082]
[1757017715580,0.06,203.98,203.97,63.61687592]
[1757017717493,0.06,203.98,203.97,62.66677106]
[1757017718168,0.06,203.98,203.97,63.15703923]
[1757017718369,0.06,203.98,203.97,62.66677106]
[1757017719178,0.06,203.98,203.97,23.51677106]
[1757017719380,0.06,203.98,203.97,61.97677106]
[1757017719808,0.06,203.98,203.97,61.83460949]
[1757017720101,0.06,203.98,203.97,61.97677106]
[1757017720995,0.06,203.98,203.97,62.66677106]
[1757017727202,0.06,204.01,203.98,13.73775558]
[1757017727403,0.06,204.01,204.0,16.50685687]
[1757017727587,0.06,204.01,204.0,21.40881765]
[1757017727917,0.06,204.01,204.0,24.23576051]
[1757017728119,0.06,204.01,204.0,62.69576051]
[1757017730184,0.06,204.01,204.0,20.60449765]
[1757017730384,0.06,204.01,204.0,61.95576051]
[1757017730591,0.73,204.01,204.0,61.95576051]
[1757017730879,0.06,204.01,204.0,61.95576051]
[1757017731288,0.73,204.01,204.0,23.51576051]
[1757017731487,0.06,204.01,204.0,61.81359894]
[1757017731694,0.73,204.01,204.0,15.5603753]
[1757017731901,0.73,204.01,203.99,13.59559401]
[1757017732082,0.06,204.01,204.0,38.44]
[1757017732703,0.73,204.01,204.0,38.44]
[1757017737093,8.54304165,204.01,203.97,13.59559401]
[1757017737308,0.67,204.0,203.96,16.53685687]
[1757017737510,0.06,204.01,203.97,41.35126286]
[1757017737706,0.67,203.99,203.97,41.35126286]
[1757017738012,0.73,204.01,203.97,41.35126286]
[1757017738207,0.06,204.01,203.97,43.34264507]
[1757017738527,0.67,204.0,203.97,46.25390793]
[1757017738717,0.67,203.99,203.98,38.44]
[1757017739698,0.73,204.01,203.99,13.59559401]
[1757017739923,2.97126286,204.01,204.0,38.44]
[1757017740497,0.73,204.01,204.0,38.44]
[1757017740691,0.06,204.01,204.0,55.66685687]
[1757017740908,0.06,204.01,204.0,58.57811973]
[1757017741200,0.06,204.01,204.0,57.85811973]
[1757017741518,0.06,204.01,204.0,54.94685687]
[1757017743111,0.06,204.01,204.0,63.48008051]
[1757017743415,0.06,204.01,204.0,63.62224208]
[1757017743609,0.20339613,204.07,204.0,63.62224208]
[1757017743810,0.20339613,204.07,204.03,13.59559401]
[1757017744118,0.20339613,204.07,204.04,38.44]
[1757017744600,3.11465899,204.07,204.04,38.44]
[1757017745003,2.91126286,204.07,204.04,38.44]
[1757017745706,3.58126286,204.07,204.04,38.44]
[1757017748513,8.4815701,204.07,204.04,38.44]
[1757017749233,0.06,204.06,204.04,38.44]
[1757017750801,0.06,204.06,204.04,39.16]
[1757017753227,0.06,204.06,204.05,17.22685687]
[1757017753807,0.06,204.06,204.05,22.12761648]
[1757017754007,0.06,204.06,204.05,27.02747448]
[1757017755211,0.06,204.06,204.05,19.21545201]
[1757017756327,0.06,204.06,204.05,24.11621162]
[1757017757134,0.06,204.06,204.05,19.21635362]
[1757017759225,0.06,204.06,204.05,22.12761648]
[1757017760636,0.06,204.06,204.05,17.22685687]
[1757017760930,0.06,204.06,204.05,14.31559401]
[1757017761724,0.06,204.06,204.04,13.59559401]
[1757017761918,0.06,204.06,204.05,38.42]
[1757017762121,0.78,204.06,204.02,13.59559401]
[1757017762330,0.78,204.06,204.01,9.80109407]
[1757017762331,2.91126286,204.04,203.98,0.03]
[1757017762622,3.63126286,204.04,203.99,33.72]
[1757017762844,3.63126286,204.04,203.99,34.44]
[1757017762845,0.72,204.03,203.99,34.44]
[1757017763339,4.9008913,204.05,203.99,34.44]
[1757017763642,2.91126286,204.04,203.99,39.34218673]
[1757017763851,3.63126286,204.04,204.0,0.72]
[1757017764027,2.91126286,204.05,204.01,39.14]
[1757017764228,29.69126286,204.06,204.02,0.72]
[1757017764443,8.59181865,204.06,204.03,38.42]
[1757017764738,3.69126286,204.06,204.03,38.42]
[1757017765940,3.69126286,204.06,204.04,0.03]
[1757017766143,3.69126286,204.06,204.05,38.42]
[1757017766442,2.97126286,204.06,204.05,38.42]
[1757017769435,3.69126286,204.06,204.05,38.42]
[1757017770148,2.97126286,204.06,204.05,38.42]
[1757017774237,2.97126286,204.06,204.05,38.4]
[1757017777460,4.60801379,204.06,204.05,38.4]
[1757017778161,0.06,204.06,204.05,39.12]
[1757017778348,0.06,204.06,204.05,38.4]
[1757017778747,0.06,204.06,204.05,39.12]
[1757017778950,0.06,204.06,204.05,48.5687734]
[1757017779752,0.06,204.06,204.05,44.02075961]
[1757017780268,0.06,204.06,204.05,62.16436741]
[1757017781265,0.06,204.06,204.05,62.30652898]
[1757017782750,0.06,204.06,204.05,62.16436741]
[1757017783041,0.06,204.06,204.05,23.76436741]
[1757017783270,0.06,204.06,204.05,62.14436741]
[1757017788566,0.06,204.06,204.05,23.76436741]
[1757017788769,0.06,204.06,204.05,62.14436741]
[1757017789948,0.06,204.06,204.05,23.76436741]
[1757017790142,0.06,204.06,204.04,4.92887724]
[1757017790385,0.06,204.06,204.05,38.38]
[1757017791968,0.06,204.06,204.05,39.04]
[1757017792162,4.54801379,204.14,204.05,39.04]
[1757017792163,4.54801379,204.14,204.09,26.0]
[1757017792357,4.89769281,204.18,204.13,26.0]
[1757017792560,5.56769281,204.18,204.14,38.36]
[1757017792947,10.1157066,204.18,204.14,38.36]
[1757017793148,0.67,204.18,204.15,3.62371501]
[1757017793348,0.67,204.18,204.16,38.36]
[1757017793768,5.56771276,204.18,204.16,38.36]
[1757017795450,5.56771276,204.18,204.17,38.36]
[1757017797370,4.89771276,204.18,204.17,38.36]
[1757017797768,4.89771276,204.18,204.12,5.5590649]
[1757017797769,10.11572655,204.18,204.12,5.5590649]
[1757017798068,10.11572655,204.18,204.13,46.52325772]
[1757017798270,10.11572655,204.18,204.13,43.56801379]
[1757017798952,10.11572655,204.18,204.13,39.02]
[1757017799147,5.56771276,204.18,204.13,43.56801379]
[1757017799350,10.11572655,204.18,204.13,43.56801379]
[1757017799664,10.11572655,204.18,204.13,5.20801379]
[1757017799857,4.54801379,204.17,204.14,38.36]
[1757017800056,4.54801379,204.17,204.15,38.36]
[1757017800753,4.54801379,204.17,204.16,38.36]
[1757017800954,4.89771276,204.18,204.16,38.36]
[1757017801160,4.54801379,204.17,204.13,0.66]
[1757017801365,5.21801379,204.17,204.14,38.36]
[1757017802078,4.89788215,204.17,204.14,39.02]
[1757017802267,9.44589594,204.17,204.14,39.02]
[1757017802774,26.67,204.19,204.14,39.02]
[1757017803080,4.54801379,204.18,204.15,0.66]
[1757017803679,5.21801379,204.18,204.14,38.36]
[1757017803872,5.56779164,204.18,204.15,38.34]
[1757017804073,10.11580543,204.18,204.14,0.66]
[1757017804387,4.54801379,204.15,204.14,38.34]
[1757017804592,31.21801379,204.15,204.04,5.58904215]
[1757017804766,4.54801379,204.06,204.05,6.92]
[1757017804961,4.54801379,204.07,204.05,6.92]
[1757017805189,6.92,204.09,204.07,13.59559401]
[1757017805389,4.54801379,204.14,204.08,8.82282669]
[1757017805569,4.54801379,204.09,204.06,14.25559401]
[1757017805779,4.54801379,204.08,204.07,38.34]
[1757017806074,13.59559401,204.14,204.07,39.0]
[1757017806075,4.54801379,204.11,204.07,39.0]
[1757017806295,14.26559401,204.14,204.08,14.25559401]
[1757017806472,9.32495535,204.22,204.07,64.34]
[1757017806473,4.54801379,204.15,204.09,18.8036078]
[1757017806774,4.54801379,204.12,204.11,13.59559401]
[1757017806983,4.54801379,204.12,204.11,51.93559401]
[1757017807180,4.54801379,204.12,204.11,52.59559401]
[1757017807483,4.54801379,204.13,204.11,52.59559401]
[1757017807677,26.67,204.16,204.12,0.66]
[1757017807864,4.54801379,204.13,204.12,0.66]
[1757017808261,4.54801379,204.13,204.11,51.93559401]
[1757017808467,4.54801379,204.12,204.11,52.59559401]
[1757017808982,31.56815335,204.16,204.11,52.59559401]
[1757017809281,4.54801379,204.12,204.11,52.59559401]
[1757017809576,5.21801379,204.12,204.11,38.34]
[1757017809976,10.11709276,204.12,204.11,38.34]
[1757017810366,10.11709276,204.12,204.07,0.66]
[1757017810568,26.67,204.11,204.08,38.34]
[1757017810767,4.54801379,204.09,204.08,38.34]
[1757017810976,4.54801379,204.09,204.05,0.66]
[1757017811168,26.67,204.11,204.08,38.34]
[1757017811479,0.67,204.1,204.09,38.34]
[1757017811665,5.56962011,204.1,204.06,0.66]
[1757017811864,5.56962011,204.1,204.07,38.34]
[1757017812264,4.54801379,204.08,204.06,0.66]
[1757017812468,4.54801379,204.07,204.04,0.69]
[1757017812675,4.54801379,204.05,204.04,0.69]
[1757017812976,4.54801379,204.05,204.04,0.03]
[1757017813160,5.21801379,204.05,204.04,0.03]
[1757017813359,4.54801379,204.05,204.04,38.37]
[1757017814287,4.54801379,204.05,204.04,0.03]
[1757017814484,4.54801379,204.05,204.04,38.37]
[1757017814677,10.1187734,204.05,204.04,0.03]
[1757017814981,26.0,204.02,204.01,0.03]
[1757017815186,35.09602758,204.02,204.01,0.03]
[1757017815388,35.76602758,204.02,204.01,0.03]
[1757017815567,50.5098536,204.02,204.01,0.03]
[1757017815770,55.41133384,204.02,204.01,0.03]
[1757017817262,40.66750782,204.02,204.01,0.03]
[1757017817687,52.92120843,204.02,203.98,0.03]
[1757017817910,30.54801379,203.99,203.98,0.03]
[1757017818266,26.0,203.99,203.98,0.03]
[1757017818588,4.54801379,203.99,203.98,0.74]
[1757017819088,4.54801379,203.99,203.98,0.03]
[1757017819279,9.45021487,203.99,203.98,0.03]
[1757017819673,14.74455066,204.06,203.98,0.74]
[1757017819874,4.90075961,204.05,203.99,38.36]
[1757017820191,4.54801379,204.02,204.0,0.71]
[1757017820383,26.0,204.02,203.99,38.36]
[1757017820582,4.54801379,204.01,203.99,38.36]
[1757017821100,4.54801379,204.01,204.0,0.71]
[1757017824422,4.54801379,204.01,204.0,38.36]
[1757017825014,4.54801379,204.01,204.0,39.07]
[1757017826285,4.54801379,204.04,204.0,39.07]
[1757017826485,4.54801379,204.04,204.01,0.71]
[1757017826704,30.90097629,204.05,204.02,0.71]
[1757017826901,4.54801379,204.04,204.02,0.71]
[1757017827298,4.54801379,204.03,204.02,0.71]
[1757017827498,4.54801379,204.03,204.0,39.07]
[1757017827694,4.54801379,204.02,204.01,0.71]
[1757017828101,4.54801379,204.02,204.0,38.36]
[1757017828305,4.54801379,204.01,203.99,0.71]
[1757017828498,4.54801379,204.0,203.98,0.03]
[1757017828801,4.54801379,203.99,203.98,0.03]
[1757017829390,9.45021487,203.99,203.98,38.39]
[1757017829591,9.45021487,203.99,203.98,0.03]
[1757017829798,9.45021487,203.99,203.98,38.39]
[1757017830003,10.14021487,203.99,203.98,0.03]
[1757017830304,9.45021487,203.99,203.98,0.03]
[1757017830608,4.54801379,203.99,203.98,0.03]
[1757017831001,4.54801379,203.99,203.98,0.74]
[1757017831204,30.54801379,203.99,203.98,0.74]
[1757017831593,30.54801379,203.99,203.98,0.03]
[1757017832204,30.54801379,203.99,203.98,0.74]
[1757017833214,30.54801379,203.99,203.98,0.03]
[1757017833595,30.54801379,203.99,203.98,0.74]
[1757017833791,30.54801379,203.99,203.98,0.03]
[1757017834324,4.54801379,203.99,203.98,0.74]
[1757017835314,30.54801379,204.02,203.98,5.64241725]
[1757017835515,4.54801379,204.02,203.99,0.71]
[1757017835712,4.54801379,204.02,204.0,39.07]
[1757017835919,4.54801379,204.02,204.01,0.71]
[1757017837200,4.54801379,204.02,204.0,38.36]
[1757017837398,4.54801379,204.02,204.0,39.07]
[1757017837603,4.54801379,204.01,204.0,39.07]
[1757017838117,4.54801379,204.01,204.0,38.36]
[1757017839415,4.901312,204.03,203.99,0.71]
[1757017839720,2.91186824,204.01,204.0,38.36]
[1757017843202,2.91186824,204.01,203.98,0.03]
[1757017843408,2.91186824,204.0,203.99,38.36]
[1757017844203,4.90149956,204.02,203.99,38.36]
[1757017844405,2.91186824,204.0,203.98,0.74]
[1757017844628,2.91186824,203.99,203.98,0.03]
[1757017844918,0.69,204.01,203.98,0.03]
[1757017845127,2.91186824,203.99,203.98,38.39]
[1757017845627,7.81406932,203.99,203.98,38.39]
[1757017846721,8.50406932,203.99,203.98,0.03]
[1757017847425,26.0,203.97,203.96,0.03]
[1757017847598,32.85816716,203.97,203.96,0.03]
[1757017847805,29.59186824,203.97,203.96,0.03]
[1757017848815,38.34595668,203.97,203.96,0.03]
[1757017849022,38.34595668,203.97,203.93,0.03]
[1757017849023,26.0,203.94,203.93,0.03]
[1757017849319,28.91186824,203.94,203.93,0.03]
[1757017849515,29.59186824,203.94,203.93,0.03]
[1757017850925,34.4952712,203.94,203.93,0.03]
[1757017851825,2.91186824,203.93,203.92,0.03]
[1757017852324,15.2393412,203.93,203.92,0.03]
[1757017852527,3.59186824,203.93,203.92,0.03]
[1757017853104,8.49551164,203.93,203.92,0.03]
[1757017854539,7.81551164,203.93,203.92,0.03]
[1757017854835,7.81551164,203.93,203.92,0.73]
[1757017855032,30.90342753,203.94,203.92,0.73]
[1757017855227,2.91186824,203.93,203.92,0.73]
[1757017855411,2.91186824,203.93,203.92,0.03]
[1757017856622,7.81551164,203.93,203.92,0.03]
[1757017856823,7.81551164,203.93,203.92,0.73]
[1757017857018,7.81551164,203.93,203.92,0.03]
[1757017857831,8.49551164,203.93,203.92,0.03]
[1757017858222,7.81551164,203.93,203.92,0.03]
[1757017858911,7.81551164,203.93,203.92,0.73]
[1757017859116,7.81551164,203.93,203.92,0.03]
[1757017859930,7.81551164,203.93,203.92,0.73]
[1757017860325,7.81551164,203.93,203.92,0.03]
[1757017861527,8.49551164,203.93,203.92,0.03]
[1757017862041,7.81551164,203.93,203.92,0.03]
[1757017862540,2.91186824,203.93,203.92,0.73]
[1757017862952,7.81551164,203.93,203.92,0.03]
[1757017864257,8.49551164,203.93,203.92,0.03]
[1757017864543,7.81551164,203.93,203.92,0.03]
[1757017865824,2.91186824,203.94,203.92,0.73]
[1757017866052,4.90274653,203.97,203.92,0.73]
[1757017866222,2.91186824,203.94,203.92,0.73]
[1757017866423,2.91186824,203.93,203.92,0.03]
[1757017867051,2.91186824,203.93,203.92,0.73]